bitfinex-derivatives/quotes_SOLF0:USTF0_20240911
["timestamp","ask_amount","ask_price","bid_price","bid_amount"]
[1726038384089,10.48,131.79,131.76,3.7945]
[1726038384290,10.48,131.79,131.77,10.00591922]
[1726038384484,10.48,131.79,131.77,3.7942]
[1726038384784,119.95405675,131.85,131.75,10.48]
[1726038384785,10.48,131.8,131.75,10.48]
[1726038385090,10.48,131.81,131.76,6.21135334]
[1726038385288,119.95405675,131.85,131.8,3.7932]
[1726038385486,10.48,131.83,131.8,3.7932]
[1726038387585,10.48,131.83,131.79,3.7936]
[1726038387781,10.48,131.82,131.76,10.48]
[1726038387986,10.48,131.82,131.77,6.21094723]
[1726038388186,10.48,131.82,131.78,10.00464723]
[1726038388387,10.48,131.82,131.79,6.21094723]
[1726038388587,10.48,131.82,131.78,3.7937]
[1726038388790,10.48,131.82,131.79,6.21018721]
[1726038388980,10.48,131.82,131.79,3.7936]
[1726038393085,119.95405675,131.85,131.8,3.7931]
[1726038393287,10.48,131.83,131.8,3.7931]
[1726038394390,119.95405675,131.85,131.8,3.7932]
[1726038394797,10.48,131.84,131.8,3.7932]
[1726038395190,10.48,131.84,131.79,3.7935]
[1726038395389,10.48,131.84,131.8,6.20799813]
[1726038395593,10.48,131.83,131.77,14.34733729]
[1726038395792,10.48,131.83,131.79,3.7935]
[1726038396492,10.48,131.83,131.8,3.7933]
[1726038397205,10.48,131.83,131.79,3.7935]
[1726038397691,10.48,131.83,131.8,6.20804539]
[1726038397897,10.48,131.83,131.79,3.7935]
[1726038398210,10.48,131.83,131.8,10.0014553]
[1726038398397,10.48,131.83,131.8,3.7934]
[1726038399396,3.71528304,131.84,131.77,14.34733729]
[1726038399697,10.48,131.83,131.78,6.20778234]
[1726038399899,10.48,131.83,131.8,3.7932]
[1726038400198,10.48,131.82,131.77,3.86733729]
[1726038400498,10.48,131.82,131.78,10.00159221]
[1726038400698,10.48,131.82,131.78,3.7939]
[1726038400895,10.48,131.82,131.77,3.7941]
[1726038401095,10.48,131.81,131.78,6.21024616]
[1726038401301,10.48,131.81,131.74,10.48]
[1726038401597,10.48,131.81,131.76,3.7945]
[1726038401898,10.48,131.81,131.77,6.21112154]
[1726038402087,10.48,131.81,131.78,6.21059118]
[1726038402294,10.48,131.81,131.76,10.48]
[1726038402494,3.8867717,131.83,131.77,16.68991842]
[1726038402698,10.48,131.83,131.79,3.7935]
[1726038402889,14.23455771,131.83,131.79,3.7935]
[1726038403502,10.48,131.83,131.79,3.7935]
[1726038403700,119.95405675,131.85,131.8,3.7933]
[1726038403898,10.48,131.84,131.8,3.7933]
[1726038407295,10.48,131.84,131.77,10.48]
[1726038407495,10.48,131.84,131.78,6.20459466]
[1726038407699,10.48,131.84,131.8,3.7932]
[1726038407897,10.48,131.84,131.77,10.48]
[1726038408100,10.48,131.84,131.78,6.20457819]
[1726038408294,10.48,131.84,131.8,3.7932]
[1726038408701,119.95405675,131.85,131.78,10.48]
[1726038408999,3.74373766,131.91,131.82,10.48]
[1726038409203,10.48,131.88,131.83,6.20413827]
[1726038409503,10.48,131.88,131.82,10.48]
[1726038409798,10.48,131.88,131.84,3.7922]
[1726038410000,14.35995143,131.88,131.84,3.7922]
[1726038410300,14.35995143,131.88,131.75,3.8074808]
[1726038410301,10.48,131.87,131.83,3.7924]
[1726038411992,10.48,131.87,131.81,14.34098042]
[1726038412301,10.48,131.84,131.78,3.731983]
[1726038412504,10.48,131.84,131.79,6.20175127]
[1726038412802,10.48,131.84,131.8,6.20174385]
[1726038413000,10.48,131.84,131.79,10.48]
[1726038413196,10.48,131.84,131.81,3.7929]
[1726038413497,338.0,131.95,131.79,14.3155333]
[1726038413696,10.48,131.86,131.83,3.7923]
[1726038413895,10.48,131.87,131.83,3.7923]
[1726038414291,10.48,131.87,131.82,10.48]
[1726038414498,338.0,131.93,131.82,10.48]
[1726038414702,10.48,131.88,131.82,10.48]
[1726038415704,10.48,131.86,131.8,10.48]
[1726038415908,3.80670611,131.93,131.79,14.3155333]
[1726038415909,10.48,131.85,131.79,14.3155333]
[1726038416099,10.48,131.85,131.8,6.20097062]
[1726038416292,10.48,131.85,131.81,3.7928]
[1726038416904,10.48,131.85,131.82,3.7928]
[1726038417494,10.48,131.85,131.8,9.99425351]
[1726038417699,10.48,131.85,131.79,10.48]
[1726038417893,10.48,131.85,131.8,6.20179218]
[1726038418098,10.48,131.85,131.79,14.22516349]
[1726038418301,10.48,131.85,131.8,6.20129579]
[1726038418600,10.48,131.85,131.79,14.22516349]
[1726038419198,10.48,131.85,131.82,3.7928]
[1726038421803,10.48,131.85,131.74,7.5899]
[1726038422105,10.48,131.84,131.77,10.48]
[1726038422308,10.48,131.84,131.79,3.7935]
[1726038423304,10.48,131.84,131.8,3.7933]
[1726038423903,562.0,131.92,131.81,3.793]
[1726038424101,10.48,131.86,131.8,16.68404095]
[1726038424303,10.48,131.86,131.81,6.20434515]
[1726038424613,10.48,131.86,131.8,10.48]
[1726038424809,10.48,131.86,131.82,3.7927]
[1726038426705,3.74895683,131.92,131.83,3.7923]
[1726038426907,338.0,131.95,131.83,10.48]
[1726038427108,10.48,131.89,131.83,10.48]
[1726038427300,10.48,131.89,131.84,3.7921]
[1726038427497,10.48,131.85,131.74,3.74706016]
[1726038427707,10.48,131.85,131.79,10.48]
[1726038427902,10.48,131.85,131.81,3.7929]
[1726038428102,10.48,131.85,131.81,3.8280361]
[1726038428309,10.48,131.88,131.81,14.3080361]
[1726038428506,10.48,131.88,131.83,3.7924]
[1726038429506,10.48,131.88,131.84,3.7922]
[1726038431008,10.48,131.88,131.83,14.2724]
[1726038431712,10.48,131.88,131.84,3.7922]
[1726038431914,227.75824926,131.92,131.84,3.7922]
[1726038432105,10.48,131.89,131.84,3.7922]
[1726038432709,10.48,131.89,131.85,3.7919]
[1726038432906,338.0,131.97,131.87,10.48]
[1726038433113,10.48,131.94,131.87,10.48]
[1726038433312,10.48,131.94,131.89,3.7906]
[1726038433505,10.48,131.92,131.86,10.48]
[1726038433715,10.48,131.91,131.86,10.48]
[1726038434012,10.48,131.91,131.87,3.7913]
[1726038434509,10.48,131.91,131.86,14.2715]
[1726038434712,10.48,131.91,131.78,7.5875]
[1726038434713,10.48,131.91,131.85,3.87616592]
[1726038434912,10.48,131.91,131.84,10.48]
[1726038435609,10.48,131.91,131.86,3.7916]
[1726038440213,10.48,131.91,131.85,3.7918]
[1726038440415,10.48,131.9,131.85,3.7918]
[1726038442521,3.74488559,131.92,131.83,3.76459881]
[1726038442730,10.48,131.88,131.8,6.20217514]
[1726038442928,10.48,131.88,131.82,10.48]
[1726038443129,10.48,131.88,131.84,3.792]
[1726038443826,10.48,131.9,131.85,3.7919]
[1726038444033,10.48,131.91,131.85,3.7919]
[1726038444219,338.0,131.97,131.85,10.48]
[1726038444420,10.48,131.93,131.87,14.2712]
[1726038445023,10.48,131.92,131.86,14.2716]
[1726038445227,10.48,131.92,131.86,10.48]
[1726038445822,10.48,131.92,131.86,14.2715]
[1726038446933,10.48,131.9,131.85,3.7918]
[1726038448734,10.48,131.92,131.86,14.2716]
[1726038450140,3.85336064,132.0,131.84,6.20147462]
[1726038450375,10.48,131.99,131.93,10.48]
[1726038451441,338.0,132.04,131.79,7.5869]
[1726038451442,10.48,131.97,131.91,10.48]
[1726038451634,10.48,131.97,131.92,3.7899]
[1726038451834,10.48,131.99,131.93,10.48]
[1726038453038,10.48,131.97,131.91,10.48]
[1726038453641,10.48,131.97,131.91,14.2702]
[1726038456237,10.48,131.97,131.92,3.7899]
[1726038456436,10.48,131.99,131.93,10.48]
[1726038462545,10.48,131.99,131.93,14.2696]
[1726038462749,10.48,131.99,131.93,10.48]
[1726038462949,338.0,132.05,131.95,10.48]
[1726038463245,10.48,132.03,131.96,10.48]
[1726038463444,14.34926866,132.02,131.96,10.48]
[1726038463651,10.48,132.02,131.96,10.48]
[1726038464151,14.29887078,132.02,131.96,10.48]
[1726038465750,10.48,132.01,131.96,10.48]
[1726038466651,14.31819628,132.01,131.96,10.48]
[1726038469451,14.31819628,132.01,131.94,14.2692]
[1726038470351,14.31819628,132.01,131.92,3.7897]
[1726038470352,10.48,132.0,131.92,3.7897]
[1726038470549,10.48,131.98,131.92,14.26012733]
[1726038471943,10.48,132.0,131.94,10.48]
[1726038473449,3.70281946,132.01,131.94,10.48]
[1726038473655,10.48,132.01,131.94,10.48]
[1726038473854,14.25198302,132.01,131.94,10.48]
[1726038475059,14.25198302,132.01,131.95,10.48]
[1726038475564,10.48,132.02,131.95,10.48]
[1726038476146,10.48,132.0,131.95,10.48]
[1726038479653,10.48,132.02,131.95,10.48]
[1726038481362,611.41297195,132.07,131.95,10.48]
[1726038481664,10.48,132.02,131.96,10.48]
[1726038486271,10.48,132.02,131.96,14.2686]
[1726038486469,10.48,132.02,131.96,10.48]
[1726038489664,10.48,132.02,131.96,14.2688]
[1726038490264,10.48,132.04,131.98,10.48]
[1726038491762,10.48,132.02,131.96,17.98099871]
[1726038492662,10.48,132.02,131.96,3.71239871]
[1726038492972,10.48,132.01,131.95,14.2689]
[1726038493273,10.48,132.01,131.96,3.83790542]
[1726038494471,10.48,132.01,131.95,14.2689]
[1726038494669,10.48,132.01,131.96,3.72158229]
[1726038496263,10.48,132.01,131.96,14.20158229]
[1726038498680,14.23378902,132.02,131.96,14.20158229]
[1726038498974,10.48,132.02,131.96,14.20158229]
[1726038499373,14.19400424,132.02,131.96,14.20158229]
[1726038500669,10.48,132.01,131.95,3.7889]
[1726038500874,10.48,132.01,131.95,14.2689]
[1726038501668,10.48,132.01,131.94,3.73976962]
[1726038501975,10.48,131.98,131.92,10.48]
[1726038502176,10.48,131.98,131.93,3.74753675]
[1726038502774,10.48,131.98,131.92,10.48]
[1726038503175,10.48,131.98,131.92,14.36282552]
[1726038503377,10.48,131.98,131.93,10.48]
[1726038504775,10.48,131.98,131.92,10.48]
[1726038510871,10.48,131.98,131.92,14.2697]
[1726038511077,10.48,131.98,131.93,10.48]
[1726038512087,10.48,131.98,131.93,14.2696]
[1726038513687,10.48,131.98,131.93,10.48]
[1726038515790,14.1900197,132.0,131.93,14.2696]
[1726038519095,14.1900197,132.0,131.94,6.20279266]
[1726038519290,14.1900197,132.0,131.93,14.2696]
[1726038519490,14.1900197,132.0,131.94,6.20283321]
[1726038519690,14.1900197,132.0,131.93,14.2696]
[1726038519891,14.1900197,132.0,131.94,6.20287986]
[1726038520196,14.1900197,132.0,131.93,14.2696]
[1726038520395,14.1900197,132.0,131.94,6.20287982]
[1726038520596,14.1900197,132.0,131.93,14.2696]
[1726038520796,14.1900197,132.0,131.94,6.20228336]
[1726038521097,14.1900197,132.0,131.93,14.2696]
[1726038521297,14.1900197,132.0,131.94,6.20254651]
[1726038521498,14.1900197,132.0,131.93,10.48]
[1726038521694,14.1900197,132.0,131.91,3.73465211]
[1726038521695,119.77876293,132.05,131.95,10.48]
[1726038521896,10.48,132.01,131.95,10.48]
[1726038522299,10.48,132.01,131.96,10.48]
[1726038523303,123.49465134,132.05,131.96,14.2687]
[1726038523497,10.48,132.02,131.96,10.48]
[1726038524901,10.48,132.01,131.95,10.48]
[1726038528407,10.48,131.97,131.82,7.5854]
[1726038528604,10.48,131.97,131.9,10.48]
[1726038528810,10.48,131.97,131.91,6.20326667]
[1726038529309,10.48,131.97,131.92,6.20326667]
[1726038529610,10.48,131.97,131.9,14.25339901]
[1726038529808,10.48,131.95,131.91,6.20353194]
[1726038530007,10.48,131.94,131.82,7.5854]
[1726038530211,10.48,131.94,131.88,10.48]
[1726038530413,10.48,131.94,131.89,6.20429864]
[1726038530613,10.48,131.94,131.9,6.20429864]
[1726038530809,10.48,131.93,131.72,37.9565]
[1726038531013,10.48,131.91,131.85,10.48]
[1726038531210,10.48,131.91,131.86,10.02431825]
[1726038531414,10.48,131.91,131.87,6.20464737]
[1726038531617,10.48,131.92,131.86,14.29967088]
[1726038531815,10.48,131.92,131.88,6.20517144]
[1726038532010,10.48,131.92,131.89,6.20517144]
[1726038532219,10.48,131.95,131.89,16.68517144]
[1726038532517,10.48,131.95,131.9,6.20517144]
[1726038532716,10.48,131.95,131.89,10.48]
[1726038533013,10.48,131.95,131.9,6.20444274]
[1726038533221,10.48,131.95,131.89,10.48]
[1726038533713,10.48,131.95,131.9,6.20469174]
[1726038533915,10.48,131.95,131.89,10.48]
[1726038534110,10.48,131.95,131.9,6.20455804]
[1726038534322,10.48,131.95,131.89,10.48]
[1726038534814,338.0,132.02,131.9,10.48]
[1726038535119,10.48,131.98,131.92,10.48]
[1726038535811,123.49465134,132.05,131.93,10.48]
[1726038536015,10.48,131.99,131.93,10.48]
[1726038538615,10.48,131.97,131.91,10.48]
[1726038538819,10.48,131.96,131.9,10.48]
[1726038539218,123.49465134,132.05,131.92,14.2698]
[1726038539416,10.48,131.99,131.93,10.48]
[1726038540314,10.48,131.99,131.93,14.2696]
[1726038540922,10.48,131.99,131.93,10.48]
[1726038541625,10.48,131.99,131.92,10.48]
[1726038541823,10.48,131.96,131.9,10.48]
[1726038542024,123.49465134,132.05,131.91,6.20356806]
[1726038542213,10.48,131.99,131.92,20.47346806]
[1726038542419,10.48,131.99,131.92,14.2699]
[1726038542621,10.48,131.99,131.92,10.48]
[1726038542823,10.48,131.99,131.93,20.47254837]
[1726038543017,10.48,131.99,131.93,14.2695]
[1726038543721,10.48,132.0,131.94,3.7893]
[1726038545126,123.49465134,132.05,131.92,3.72081564]
[1726038545322,123.49465134,132.05,131.98,10.48]
[1726038545517,10.48,132.03,131.98,10.48]
[1726038546421,10.48,132.04,131.98,10.48]
[1726038547423,123.49465134,132.05,131.98,10.48]
[1726038547623,10.48,132.04,131.98,10.48]
[1726038548234,10.48,132.04,131.96,3.7887]
[1726038548525,10.48,132.04,131.97,10.48]
[1726038550836,10.48,132.02,131.97,10.48]
[1726038554932,10.48,132.01,131.95,6.20128379]
[1726038555127,10.48,132.01,131.95,10.48]
[1726038556828,10.48,132.0,131.93,3.77652318]
[1726038557139,10.48,131.97,131.92,10.48]
[1726038557336,3.7895,131.94,131.92,14.28694133]
[1726038557636,3.7895,131.94,131.92,10.48]
[1726038558842,10.48,131.97,131.91,10.48]
[1726038559335,3.7894,131.94,131.91,10.48]
[1726038561444,3.7897,131.93,131.91,10.48]
[1726038561948,10.48,131.97,131.91,10.48]
[1726038562243,3.7898,131.93,131.91,10.48]
[1726038564339,10.48,131.96,131.9,10.48]
[1726038564540,10.48,131.96,131.91,6.20357763]
[1726038564736,10.48,131.96,131.9,10.48]
[1726038564945,3.7899,131.93,131.91,6.20357592]
[1726038565142,10.48,131.96,131.9,10.48]
[1726038565444,3.7899,131.92,131.91,6.20362439]
[1726038566437,10.48,131.96,131.91,6.20362439]
[1726038566739,10.48,131.96,131.9,10.48]
[1726038566940,10.48,131.96,131.91,6.20361917]
[1726038567244,3.77738315,131.98,131.91,10.48]
[1726038567437,10.48,131.97,131.91,10.48]
[1726038574948,3.7899,131.92,131.91,10.48]
[1726038575149,10.48,131.97,131.91,16.6836506]
[1726038575344,10.48,131.97,131.91,10.48]
[1726038576050,3.7898,131.93,131.91,10.48]
[1726038576638,3.7898,131.93,131.89,3.74365193]
[1726038576639,338.0,132.03,131.89,3.74365193]
[1726038576847,693.06735134,132.05,131.96,10.48]
[1726038577048,10.48,132.02,131.96,10.48]
[1726038578651,10.48,132.0,131.94,10.48]
[1726038579353,10.48,131.95,131.77,6.20334097]
[1726038579655,10.48,131.95,131.88,10.48]
[1726038579859,10.48,131.95,131.89,6.20334097]
[1726038580151,3.7903,131.91,131.88,10.48]
[1726038580351,3.7903,131.91,131.89,6.20356515]
[1726038580551,3.7903,131.91,131.9,6.20356515]
[1726038581145,3.7903,131.91,131.89,10.48]
[1726038581547,3.7903,131.91,131.9,6.20350078]
[1726038581945,3.7901,131.92,131.9,16.68350078]
[1726038582153,3.7901,131.92,131.9,10.48]
[1726038583851,3.7902,131.91,131.88,10.48]
[1726038584051,3.7902,131.91,131.89,6.20372562]
[1726038584251,3.7902,131.91,131.9,6.20372562]
[1726038588060,3.7901,131.92,131.9,10.48]
[1726038588956,3.7902,131.91,131.9,10.48]
[1726038589150,3.7902,131.91,131.9,16.68373062]
[1726038590451,10.48,131.96,131.9,16.68373062]
[1726038590657,10.48,131.96,131.9,10.48]
[1726038591863,3.79,131.92,131.9,10.48]
[1726038599863,10.48,131.93,131.75,18.65517263]
[1726038600069,10.48,131.93,131.87,10.48]
[1726038600270,3.7905,131.91,131.88,10.0461626]
[1726038600470,3.7905,131.91,131.89,6.2037753]
[1726038600666,3.7905,131.91,131.9,6.2037753]
[1726038602969,7.5762,131.99,131.9,6.2037753]
[1726038603165,10.48,131.95,131.88,14.3223873]
[1726038603377,3.77179681,131.96,131.88,14.3223873]
[1726038603576,10.48,131.95,131.89,6.20376119]
[1726038603777,10.48,131.95,131.9,6.20376119]
[1726038604070,10.48,131.95,131.88,14.3223873]
[1726038604071,3.7901,131.92,131.88,14.3223873]
[1726038604275,3.7901,131.92,131.89,6.20375312]
[1726038604466,3.7901,131.92,131.9,6.20375312]
[1726038604669,3.7901,131.92,131.88,14.3223873]
[1726038604976,3.7901,131.92,131.89,6.20374123]
[1726038605174,3.7901,131.92,131.9,6.20374123]
[1726038605377,3.7901,131.92,131.88,14.3223873]
[1726038605569,3.7901,131.92,131.89,6.2037343]
[1726038605770,3.7901,131.92,131.9,6.2037343]
[1726038605970,3.7901,131.92,131.88,14.3223873]
[1726038606172,3.7901,131.92,131.89,6.20373592]
[1726038606371,3.7901,131.92,131.9,6.20373592]
[1726038606775,3.7901,131.92,131.88,14.3223873]
[1726038607378,3.7901,131.92,131.89,6.20373592]
[1726038607679,3.7901,131.92,131.9,6.20373592]
[1726038607979,3.7901,131.92,131.88,14.3223873]
[1726038608279,3.7901,131.92,131.89,6.20373759]
[1726038608478,3.7901,131.92,131.9,6.20373759]
[1726038608681,3.7901,131.92,131.88,14.3223873]
[1726038608879,3.7901,131.92,131.89,6.20373759]
[1726038609079,3.7901,131.92,131.9,6.20373759]
[1726038609280,3.7901,131.92,131.88,14.3223873]
[1726038609482,3.7901,131.92,131.89,6.20373759]
[1726038609668,3.7901,131.92,131.9,6.20373759]
[1726038609869,3.7901,131.92,131.88,14.3223873]
[1726038610186,3.7904,131.91,131.89,6.20383215]
[1726038610384,3.7904,131.91,131.9,6.20383215]
[1726038613174,3.7904,131.91,131.87,14.28203085]
[1726038613370,3.7904,131.91,131.9,6.20387112]
[1726038613569,3.7904,131.91,131.88,6.20387112]
[1726038613974,3.7904,131.91,131.89,6.20387073]
[1726038614779,3.7904,131.91,131.87,14.28203085]
[1726038614975,3.7904,131.91,131.88,6.20390563]
[1726038615175,3.7904,131.91,131.89,6.20390563]
[1726038615375,3.7904,131.91,131.87,14.28203085]
[1726038615577,3.7904,131.91,131.88,6.20390383]
[1726038615883,3.7905,131.9,131.89,6.20390383]
[1726038616484,3.7913,131.88,131.83,10.48]
[1726038616787,3.7913,131.88,131.84,9.97937241]
[1726038616990,3.7913,131.88,131.84,13.77147241]
[1726038617289,3.7913,131.88,131.85,6.20416241]
[1726038617485,3.7913,131.88,131.86,6.20416241]
[1726038617687,3.7913,131.88,131.84,7.56731]
[1726038617886,3.7913,131.88,131.85,6.20537017]
[1726038618085,3.7913,131.88,131.86,6.20537017]
[1726038618388,3.7913,131.88,131.85,3.7919]
[1726038618685,10.48,131.89,131.86,6.20559697]
[1726038618897,10.48,131.89,131.85,3.7919]
[1726038619085,10.48,131.89,131.86,6.20586671]
[1726038619387,10.48,131.89,131.85,3.7919]
[1726038619583,10.48,131.89,131.86,6.20559906]
[1726038619781,10.48,131.89,131.87,6.20559906]
[1726038619987,10.48,131.89,131.85,3.7919]
[1726038620187,10.48,131.89,131.86,6.20586152]
[1726038620386,10.48,131.89,131.85,3.7919]
[1726038620586,10.48,131.89,131.86,6.20586152]
[1726038620783,10.48,131.89,131.85,3.7919]
[1726038620979,10.48,131.89,131.86,9.99746151]
[1726038621184,10.48,131.89,131.86,3.7916]
[1726038621391,10.48,131.89,131.87,6.20565681]
[1726038621691,10.48,131.89,131.86,3.7916]
[1726038621993,10.48,131.89,131.87,6.20565428]
[1726038622184,10.48,131.89,131.86,3.7916]
[1726038624284,10.48,131.89,131.87,6.20583443]
[1726038624490,10.48,131.89,131.86,3.7916]
[1726038624790,10.48,131.89,131.87,6.20583443]
[1726038624990,10.48,131.89,131.86,3.7916]
[1726038625291,10.48,131.89,131.85,3.7919]
[1726038625491,10.48,131.89,131.86,6.20600812]
[1726038625793,10.48,131.89,131.85,3.7919]
[1726038626091,10.48,131.89,131.86,6.20611106]
[1726038626287,10.48,131.89,131.85,3.7919]
[1726038626490,10.48,131.89,131.86,6.20607759]
[1726038626989,10.48,131.89,131.85,3.7919]
[1726038627180,10.48,131.89,131.86,6.20613636]
[1726038627382,10.48,131.89,131.85,3.7919]
[1726038627579,10.48,131.89,131.86,6.20616982]
[1726038627790,10.48,131.89,131.85,3.7919]
[1726038627984,10.48,131.89,131.86,6.20616982]
[1726038628185,10.48,131.87,131.76,7.5889]
[1726038628385,10.48,131.87,131.8,10.48]
[1726038628593,10.48,131.87,131.81,6.20683702]
[1726038628793,10.48,131.87,131.82,6.20683702]
[1726038628996,10.48,131.87,131.8,14.27843713]
[1726038628997,10.48,131.85,131.83,6.20683702]
[1726038629191,10.48,131.85,131.8,14.27843713]
[1726038629386,10.48,131.85,131.81,6.20716676]
[1726038629697,10.48,131.85,131.82,6.20716676]
[1726038629882,10.48,131.85,131.8,14.27843713]
[1726038630194,10.48,131.85,131.83,6.20706148]
[1726038630392,10.48,131.85,131.8,14.27843713]
[1726038630592,10.48,131.85,131.81,6.20719838]
[1726038630892,10.48,131.85,131.82,6.20719838]
[1726038631391,3.75559619,131.89,131.83,6.20719838]
[1726038631589,10.48,131.83,131.78,3.88446366]
[1726038631797,10.48,131.81,131.79,6.20719838]
[1726038632090,3.7937,131.79,131.76,3.76687907]
[1726038632289,3.7937,131.79,131.77,6.2088063]
[1726038632480,3.7937,131.79,131.76,3.77332726]
[1726038632685,3.7937,131.79,131.77,6.20949787]
[1726038632686,14.2737,131.79,131.77,6.20949787]
[1726038632881,14.2737,131.79,131.73,6.20949787]
[1726038633089,14.2737,131.79,131.74,6.20949787]
[1726038633286,14.2737,131.79,131.72,14.25749962]
[1726038633287,3.794,131.78,131.72,3.77749962]
[1726038633583,3.794,131.78,131.73,6.20972858]
[1726038633790,10.48,131.77,131.73,6.20972858]
[1726038633991,10.48,131.77,131.74,6.20972858]
[1726038634188,10.48,131.77,131.75,6.20972858]
[1726038634386,10.48,131.77,131.76,6.20972858]
[1726038634587,10.48,131.77,131.73,6.20972858]
[1726038634893,10.48,131.77,131.74,6.20972858]
[1726038635087,10.48,131.77,131.72,3.71567288]
[1726038635282,10.48,131.77,131.73,6.21152172]
[1726038635481,10.48,131.77,131.72,3.83243147]
[1726038635686,10.48,131.76,131.72,3.83243147]
[1726038635887,10.48,131.76,131.7,10.48]
[1726038636088,10.48,131.76,131.71,6.21152172]
[1726038636288,10.48,131.76,131.7,14.29839326]
[1726038636994,10.48,131.76,131.71,3.7959]
[1726038637194,10.48,131.75,131.7,3.81839326]
[1726038637394,10.48,131.75,131.68,10.48]
[1726038637792,10.48,131.75,131.7,3.7961]
[1726038638302,224.0,131.86,131.69,10.48]
[1726038638303,3.72532645,131.8,131.69,10.48]
[1726038638496,224.0,131.86,131.72,10.48]
[1726038638699,10.48,131.79,131.72,10.48]
[1726038639093,10.48,131.79,131.74,3.7951]
[1726038640596,338.0,131.89,131.72,10.48]
[1726038640792,10.48,131.8,131.74,10.48]
[1726038640994,10.48,131.8,131.75,3.82134183]
[1726038641193,10.48,131.8,131.75,7.61604183]
[1726038641396,10.48,131.8,131.75,3.82134183]
[1726038641793,10.48,131.79,131.75,7.61604183]
[1726038643197,10.48,131.79,131.76,3.7945]
[1726038652296,338.0,131.91,131.76,10.48]
[1726038652501,10.48,131.84,131.77,10.48]
[1726038652909,10.48,131.85,131.79,10.48]
[1726038653106,10.48,131.85,131.79,14.34924186]
[1726038653307,10.48,131.85,131.72,7.5913]
[1726038653308,10.48,131.83,131.78,3.7938]
[1726038653497,10.48,131.81,131.68,11.47883513]
[1726038653802,10.48,131.79,131.69,1.39449645]
[1726038654004,10.48,131.78,131.73,3.7952]
[1726038656208,16.41,131.79,131.73,3.7952]
[1726038656409,16.41,131.79,131.74,3.795]
[1726038656610,16.41,131.79,131.75,3.72457498]
[1726038657506,16.41,131.79,131.74,3.795]
[1726038659218,16.41,131.79,131.73,3.7953]
[1726038659699,16.41,131.79,131.74,3.7951]
[1726038660806,16.41,131.79,131.73,3.7953]
[1726038661010,16.41,131.79,131.69,16.41]
[1726038661403,16.41,131.79,131.74,3.7951]
[1726038661610,16.41,131.79,131.75,3.73900068]
[1726038662815,16.41,131.79,131.74,3.7951]
[1726038663704,16.41,131.79,131.75,3.7948]
[1726038663907,16.41,131.79,131.69,16.41]
[1726038664618,16.41,131.79,131.74,3.795]
[1726038667018,16.41,131.79,131.75,7.57924125]
[1726038667509,16.41,131.81,131.75,7.57924125]
[1726038667709,16.41,131.81,131.75,3.78444125]
[1726038667909,16.41,131.81,131.71,16.41]
[1726038668310,16.41,131.83,131.73,16.41]
[1726038668513,16.41,131.85,131.75,16.41]
[1726038668713,16.41,131.85,131.75,20.27450914]
[1726038669215,16.41,131.85,131.77,16.41]